bitfinex-derivatives/quotes_SOLF0:USTF0_20260316
["timestamp","ask_amount","ask_price","bid_price","bid_amount"]
[1773629473134,12.23841289,91.549,91.513,10.15736146]
[1773629473730,2.86617873,91.55,91.497,9.834]
[1773629473731,12.23841289,91.546,91.509,10.15736146]
[1773629474435,2.86617873,91.54,91.509,10.15736146]
[1773629475229,2.86617873,91.54,91.508,10.15736146]
[1773629475536,12.23841289,91.546,91.508,10.15736146]
[1773629479435,12.23841289,91.546,91.511,10.15736146]
[1773629479638,12.23841289,91.558,91.512,11.25848602]
[1773629479840,12.23841289,91.558,91.513,11.25848602]
[1773629481537,2.86441527,91.55,91.512,10.15736146]
[1773629481743,12.23841289,91.549,91.512,10.15736146]
[1773629482246,12.23841289,91.549,91.508,10.15736146]
[1773629482446,12.45056048,91.539,91.508,10.15736146]
[1773629483345,12.45056048,91.539,91.507,10.15736146]
[1773629486144,12.45056048,91.539,91.506,10.15736146]
[1773629489446,12.45056048,91.539,91.502,10.15736146]
[1773629492553,12.45056048,91.562,91.511,11.6071882]
[1773629492748,12.45056048,91.539,91.515,0.00036146]
[1773629493051,12.45056048,91.539,91.492,11.6071882]
[1773629493052,12.45056048,91.539,91.493,11.6071882]
[1773629500755,12.45056048,91.539,91.495,11.6071882]
[1773629501346,12.45056048,91.551,91.501,11.6071882]
[1773629502556,12.45056048,91.551,91.504,11.6071882]
[1773629503456,32.8,91.596,91.513,11.6071882]
[1773629503457,12.45056048,91.565,91.513,11.6071882]
[1773629503656,46.85056048,91.565,91.513,11.6071882]
[1773629503858,12.45056048,91.564,91.513,11.6071882]
[1773629504458,12.45056048,91.562,91.513,11.6071882]
[1773629506659,12.45056048,91.559,91.513,11.6071882]
[1773629507754,12.45056048,91.572,91.521,11.6071882]
[1773629507958,34.4,91.577,91.521,11.6071882]
[1773629508354,12.45056048,91.576,91.521,11.6071882]
[1773629509661,12.45056048,91.576,91.522,11.6071882]
[1773629510571,12.45056048,91.576,91.525,11.6071882]
[1773629511171,9.826,91.575,91.525,11.6071882]
[1773629511371,12.45056048,91.569,91.525,11.6071882]
[1773629512970,12.11616477,91.567,91.525,11.6071882]
[1773629513369,12.11616477,91.567,91.516,9.832]
[1773629513674,12.11616477,91.567,91.517,11.95366487]
[1773629515574,11.59620997,91.565,91.517,11.95366487]
[1773629518380,11.59620997,91.559,91.517,11.95366487]
[1773629518874,11.59620997,91.554,91.517,11.95366487]
[1773629520376,11.59620997,91.554,91.508,11.61323412]
[1773629521680,2.86441527,91.55,91.508,11.61323412]
[1773629521981,14.46062524,91.55,91.508,11.61323412]
[1773629524486,11.59620997,91.55,91.508,11.61323412]
[1773629524982,14.46062524,91.55,91.508,11.61323412]
[1773629526584,11.59620997,91.55,91.508,11.61323412]
[1773629526791,14.46062524,91.56,91.508,11.61323412]
[1773629527691,14.46062524,91.56,91.51,11.61323412]
[1773629528489,11.59620997,91.56,91.514,11.61323412]
[1773629528788,14.46062524,91.57,91.514,11.61323412]
[1773629528985,34.4,91.577,91.527,11.61323412]
[1773629529384,11.59620997,91.576,91.527,11.61323412]
[1773629529986,2.86441527,91.57,91.527,11.61323412]
[1773629530188,11.59620997,91.569,91.527,11.61323412]
[1773629531589,34.4,91.577,91.527,11.61323412]
[1773629531792,11.59620997,91.576,91.527,11.61323412]
[1773629531987,11.59620997,91.569,91.527,11.61323412]
[1773629532489,11.59620997,91.559,91.515,11.61323412]
[1773629532697,2.86441527,91.55,91.515,11.61323412]
[1773629533084,14.46062524,91.55,91.515,11.61323412]
[1773629536891,11.59620997,91.55,91.515,11.61323412]
[1773629537689,11.59620997,91.55,91.508,13.50862382]
[1773629538795,14.46043657,91.55,91.508,13.50862382]
[1773629539186,11.59620997,91.55,91.509,11.61323412]
[1773629539389,34.4,91.555,91.51,11.61323412]
[1773629539792,11.59620997,91.554,91.51,11.61323412]
[1773629541288,14.46043657,91.55,91.51,11.61323412]
[1773629542996,11.59620997,91.55,91.51,11.61323412]
[1773629544891,11.59620997,91.55,91.511,9.833]
[1773629545092,34.4,91.558,91.512,11.85537182]
[1773629545492,34.4,91.558,91.51,2.8642266]
[1773629545493,34.4,91.558,91.52,11.85537182]
[1773629545688,11.00845459,91.567,91.52,11.85537182]
[1773629546493,11.00845459,91.567,91.522,11.85537182]
[1773629546999,11.00845459,91.579,91.531,11.85537182]
[1773629548500,11.00845459,91.579,91.531,21.68637182]
[1773629548799,11.00845459,91.559,91.514,13.50862382]
[1773629548997,11.00845459,91.559,91.513,13.50862382]
[1773629549399,11.00845459,91.559,91.512,13.50862382]
[1773629551195,11.00845459,91.559,91.514,9.833]
[1773629551402,34.4,91.56,91.515,11.85537182]
[1773629552600,34.4,91.56,91.518,9.832]
[1773629552902,34.4,91.56,91.51,2.8642266]
[1773629552903,34.4,91.56,91.519,11.85537182]
[1773629553600,34.4,91.56,91.522,11.85537182]
[1773629554204,34.4,91.56,91.523,11.85537182]
[1773629555104,34.4,91.56,91.526,9.831]
[1773629555296,11.00845459,91.559,91.517,13.50862382]
[1773629555494,11.00845459,91.559,91.514,11.85537182]
[1773629556603,11.00845459,91.559,91.516,21.68737182]
[1773629556807,11.00845459,91.559,91.517,11.85537182]
[1773629557005,11.00845459,91.559,91.518,11.85537182]
[1773629557406,11.00845459,91.559,91.519,11.85537182]
[1773629557601,11.00845459,91.559,91.521,9.832]
[1773629558008,34.4,91.56,91.524,11.85537182]
[1773629558306,34.4,91.56,91.527,11.85537182]
[1773629558708,34.4,91.56,91.532,9.831]
[1773629559996,34.4,91.56,91.532,21.68637182]
[1773629560807,11.00845459,91.571,91.533,11.85537182]
[1773629561108,11.00845459,91.58,91.536,11.85537182]
[1773629561603,11.00845459,91.58,91.537,11.85537182]
[1773629564808,11.00845459,91.58,91.539,11.85537182]
[1773629565907,11.00845459,91.58,91.541,11.85537182]
[1773629566102,11.00845459,91.58,91.52,54.8363235]
[1773629566103,11.00845459,91.617,91.561,11.85537182]
[1773629566408,11.00845459,91.617,91.571,11.85537182]
[1773629566604,11.00845459,91.617,91.576,9.826]
[1773629566810,11.00845459,91.617,91.577,11.85537182]
[1773629570506,11.00845459,91.617,91.579,9.826]
[1773629570706,48.27268119,91.63,91.58,11.07181105]
[1773629571011,45.40845459,91.63,91.58,11.07181105]
[1773629571416,45.40845459,91.63,91.584,11.0743279]
[1773629571710,11.00845459,91.619,91.561,11.06843803]
[1773629571906,11.00845459,91.619,91.576,11.06843803]
[1773629576516,11.00845459,91.619,91.565,9.827]
[1773629576812,11.27534179,91.609,91.565,20.85594893]
[1773629577016,11.27534179,91.609,91.551,11.02894893]
[1773629578614,11.27534179,91.609,91.557,11.02894893]
[1773629579516,11.27534179,91.609,91.562,9.827]
[1773629579715,11.27534179,91.589,91.544,11.02894893]
[1773629580615,11.27534179,91.589,91.544,20.85794893]
[1773629581318,11.27534179,91.589,91.546,9.829]
[1773629582011,11.27534179,91.589,91.547,11.02894893]
[1773629582714,11.27534179,91.589,91.548,9.829]
[1773629582918,11.27534179,91.589,91.549,11.02894893]
[1773629583709,11.27534179,91.605,91.549,11.02894893]
[1773629583914,11.27534179,91.599,91.549,11.02894893]
[1773629584614,11.27534179,91.599,91.551,9.829]
[1773629585217,11.27534179,91.589,91.551,9.829]
[1773629586215,11.27534179,91.589,91.549,11.02894893]
[1773629586216,11.27534179,91.579,91.523,11.02894893]
[1773629586517,2.8642266,91.57,91.523,11.02894893]
[1773629587110,11.27534179,91.569,91.523,11.02894893]
[1773629588117,11.27534179,91.569,91.526,9.831]
[1773629588620,11.27534179,91.569,91.526,20.85994893]
[1773629590823,11.27534179,91.559,91.517,9.832]
[1773629591023,11.27534179,91.559,91.517,20.86094893]
[1773629594517,2.8642266,91.56,91.521,11.02894893]
[1773629595622,2.8642266,91.56,91.525,9.831]
[1773629598921,2.86362196,91.56,91.525,9.831]
[1773629599126,11.27534179,91.571,91.531,11.02894893]
[1773629600527,11.27534179,91.571,91.538,9.83]
[1773629601528,11.27534179,91.602,91.539,11.02894893]
[1773629601725,14.13896375,91.58,91.539,11.02894893]
[1773629601921,11.27534179,91.579,91.539,11.02894893]
[1773629602625,11.27534179,91.579,91.544,9.829]
[1773629605820,2.86362196,91.57,91.539,11.02894893]
[1773629607332,11.27534179,91.579,91.542,9.83]
[1773629609834,11.5167454,91.569,91.534,9.83]
[1773629611129,11.5167454,91.569,91.523,9.832]
[1773629611331,11.5167454,91.569,91.524,11.49588382]
[1773629611938,14.38036736,91.56,91.524,11.49588382]
[1773629614044,11.5167454,91.56,91.524,11.49588382]
[1773629615747,14.38036736,91.57,91.526,11.49588382]
[1773629616545,14.38036736,91.57,91.527,9.831]
[1773629617637,14.38036736,91.57,91.527,21.32688382]
[1773629618045,2.86362196,91.56,91.527,11.49588382]
[1773629618240,2.86362196,91.55,91.497,34.4]
[1773629618438,11.5167454,91.549,91.498,11.49588382]
[1773629618636,14.38036736,91.54,91.498,11.49588382]
[1773629619346,11.5167454,91.552,91.51,11.49588382]
[1773629620445,2.86362196,91.56,91.51,11.49588382]
[1773629620641,2.86362196,91.56,91.52,11.49588382]
[1773629622445,14.38036736,91.56,91.52,11.49588382]
[1773629623753,14.38036736,91.56,91.512,11.49588382]
[1773629624453,2.86362196,91.55,91.512,11.49588382]
[1773629624651,14.38036736,91.56,91.512,11.49588382]
[1773629627455,14.38036736,91.56,91.515,9.832]
[1773629629756,9.828,91.559,91.512,11.49588382]
[1773629630059,9.828,91.559,91.507,9.833]
[1773629630060,11.5167454,91.558,91.507,9.833]
[1773629630358,11.5167454,91.549,91.507,9.833]
[1773629630559,11.5167454,91.56,91.51,11.49588382]
[1773629631652,11.5167454,91.56,91.517,11.49588382]
[1773629632651,11.5167454,91.56,91.519,21.10733187]
[1773629633449,10.7488211,91.569,91.521,9.832]
[1773629633958,10.7488211,91.569,91.522,11.5720331]
[1773629634161,11.46787003,91.566,91.522,11.5720331]
[1773629637362,11.46787003,91.559,91.511,9.833]
[1773629637563,11.46787003,91.559,91.511,21.4050331]
[1773629638666,11.46787003,91.558,91.511,21.4050331]
[1773629639563,11.46787003,91.558,91.512,11.5720331]
[1773629646270,11.46787003,91.558,91.513,9.833]
[1773629646467,11.46787003,91.558,91.497,34.4]
[1773629646468,14.33149199,91.58,91.519,11.5720331]
[1773629647167,11.46787003,91.589,91.546,11.5720331]
[1773629647571,11.46787003,91.589,91.529,11.5720331]
[1773629647871,2.86362196,91.59,91.529,11.5720331]
[1773629647872,11.46787003,91.579,91.529,11.5720331]
[1773629648073,11.46787003,91.592,91.541,11.5720331]
[1773629648771,11.46787003,91.592,91.547,11.5720331]
[1773629649172,2.86362196,91.59,91.547,11.5720331]
[1773629649667,14.33149199,91.59,91.547,11.5720331]
[1773629650066,14.33149199,91.59,91.536,13.53343962]
[1773629650369,32.8,91.613,91.535,11.5720331]
[1773629650370,11.46787003,91.579,91.535,11.5720331]
[1773629650768,11.46787003,91.569,91.525,13.53343962]
[1773629650970,11.46787003,91.569,91.523,11.5720331]
[1773629653268,11.46787003,91.568,91.516,13.53343962]
[1773629653469,11.46787003,91.559,91.509,11.5720331]
[1773629657567,9.828,91.557,91.509,11.5720331]
[1773629657773,11.46787003,91.556,91.509,11.5720331]
[1773629660484,11.46787003,91.556,91.511,11.5720331]
[1773629664879,11.46787003,91.556,91.512,9.833]
[1773629665079,11.46787003,91.556,91.513,11.13140986]
[1773629682694,11.46787003,91.556,91.519,11.13140986]
[1773629683290,10.98417866,91.566,91.522,9.832]
[1773629683490,10.98417866,91.566,91.519,11.13140986]
[1773629683695,10.98417866,91.566,91.523,11.13140986]
[1773629683892,10.98417866,91.566,91.524,11.13140986]
[1773629684590,10.98417866,91.566,91.531,11.13140986]
[1773629685195,34.4,91.6,91.541,11.13140986]
[1773629685196,10.98417866,91.593,91.541,11.13140986]
[1773629685798,10.98417866,91.589,91.541,11.13140986]
[1773629686503,10.98417866,91.589,91.544,9.829]
[1773629686702,10.98417866,91.589,91.544,20.96040986]
[1773629686903,10.98417866,91.589,91.544,11.13140986]
[1773629687105,10.98417866,91.579,91.528,11.13140986]
[1773629687898,10.98417866,91.569,91.511,11.13140986]
[1773629689511,10.98417866,91.569,91.516,9.832]
[1773629689712,10.98417866,91.569,91.517,11.13140986]
[1773629690114,9.827,91.568,91.517,11.13140986]
[1773629690311,10.98417866,91.567,91.517,11.13140986]
[1773629691520,10.98417866,91.567,91.519,9.832]
[1773629691716,10.98417866,91.567,91.52,11.13140986]
[1773629693214,11.18329021,91.564,91.52,11.13140986]
[1773629695522,11.18329021,91.564,91.523,11.20470744]
[1773629696022,11.18329021,91.564,91.529,11.20470744]
[1773629696725,11.59437288,91.581,91.531,11.2586135]
[1773629697216,11.59437288,91.581,91.536,11.2586135]
[1773629697921,11.59437288,91.581,91.54,11.24936591]
[1773629699518,11.59437288,91.581,91.541,9.83]
[1773629700723,11.59437288,91.581,91.541,21.06873017]
[1773629701224,11.59437288,91.581,91.542,11.23873017]
[1773629702020,11.59437288,91.594,91.542,11.23873017]
[1773629703520,9.822,91.609,91.552,11.26652519]
[1773629703825,11.59437288,91.626,91.552,11.26652519]
[1773629704025,11.59437288,91.626,91.571,11.26652519]
[1773629704219,34.4,91.627,91.571,11.26652519]
[1773629704220,11.59437288,91.619,91.571,11.26652519]
[1773629704824,11.59437288,91.631,91.571,11.26652519]
[1773629705825,32.77,91.652,91.571,11.26652519]
[1773629705826,11.59437288,91.629,91.571,11.26652519]
[1773629706622,11.59437288,91.629,91.584,9.825]
[1773629707818,11.59437288,91.629,91.584,21.03867867]
[1773629710127,11.59437288,91.629,91.593,9.824]
[1773629713733,11.59437288,91.629,91.584,21.03867867]
[1773629714234,11.59437288,91.619,91.573,11.24954028]
[1773629715624,11.59437288,91.619,91.574,9.826]
[1773629717931,11.59437288,91.616,91.573,11.24954028]
[1773629718627,2.86335623,91.62,91.576,11.21055442]
[1773629718829,14.45772911,91.62,91.576,11.21055442]
[1773629719636,14.45772911,91.62,91.577,9.826]
[1773629722835,14.45431544,91.62,91.577,9.826]
[1773629723438,11.41341372,91.609,91.561,10.42040587]
[1773629724138,11.41341372,91.609,91.565,10.42040587]
[1773629725639,11.41341372,91.609,91.568,9.827]
[1773629733435,11.41341372,91.609,91.569,10.42040587]
[1773629733738,32.77,91.657,91.571,10.42040587]
[1773629733939,2.85994256,91.63,91.571,10.42040587]
[1773629734140,2.85994256,91.62,91.571,10.42040587]
[1773629734441,2.85994256,91.63,91.571,10.42040587]
[1773629735138,2.85994256,91.62,91.571,10.42040587]
[1773629735544,2.85994256,91.62,91.575,20.24640587]
[1773629735737,11.41341372,91.619,91.575,20.24640587]
[1773629736541,11.41341372,91.619,91.576,10.42040587]
[1773629739542,11.41341372,91.619,91.578,10.42040587]
[1773629740938,11.41341372,91.619,91.579,9.826]
[1773629741145,11.41341372,91.619,91.58,10.42040587]
[1773629742237,11.41341372,91.619,91.579,9.826]
[1773629742438,11.41341372,91.619,91.572,10.42040587]
[1773629743845,11.41341372,91.619,91.573,9.826]
[1773629744045,11.41341372,91.619,91.574,10.42040587]
[1773629745847,11.41341372,91.635,91.578,10.42040587]
[1773629746447,11.41341372,91.635,91.592,10.42040587]
[1773629749552,11.41341372,91.635,91.583,9.825]
[1773629749946,11.41341372,91.635,91.583,20.24540587]
[1773629750153,11.41341372,91.644,91.602,10.42040587]
[1773629750342,47.77146634,91.676,91.602,10.42040587]
[1773629750343,11.41341372,91.663,91.602,10.42040587]
[1773629750844,11.41341372,91.659,91.604,10.42040587]
[1773629751047,11.41341372,91.649,91.604,10.42040587]
[1773629751555,11.41341372,91.649,91.604,20.24340587]
[1773629751754,11.41341372,91.649,91.605,10.42040587]
[1773629752354,11.41341372,91.649,91.611,10.42864823]
[1773629753254,11.41341372,91.649,91.598,10.42864823]
[1773629755757,11.41341372,91.649,91.6,9.823]
[1773629756056,11.41341372,91.649,91.601,10.61956884]
[1773629757355,10.9096344,91.647,91.601,10.61956884]
[1773629759056,10.9096344,91.647,91.603,9.823]
[1773629759260,10.9096344,91.647,91.604,10.61956884]
[1773629761362,10.9096344,91.639,91.592,10.61956884]
[1773629763364,10.9096344,91.639,91.593,10.61956884]
[1773629763563,10.9096344,91.659,91.601,10.61956884]
[1773629764064,10.9096344,91.659,91.614,10.61956884]
[1773629765567,10.9096344,91.659,91.617,20.44156884]
[1773629765868,10.9096344,91.659,91.601,10.61956884]
[1773629766567,2.85994256,91.65,91.601,10.61956884]
[1773629767561,2.85994256,91.65,91.607,10.61956884]
[1773629767962,2.85994256,91.65,91.594,13.53343962]
[1773629767963,10.9096344,91.649,91.594,24.15300846]
[1773629768166,10.9096344,91.639,91.594,10.61956884]
[1773629768369,2.85994256,91.63,91.594,10.61956884]
[1773629768669,10.9096344,91.639,91.594,10.61956884]
[1773629769266,8.74925376,91.599,91.524,10.61956884]
[1773629769464,2.85994256,91.59,91.524,10.61956884]
[1773629769666,8.74925376,91.599,91.531,13.86806467]
[1773629769865,8.74925376,91.599,91.543,9.829]
[1773629770061,8.74925376,91.599,91.54,2.85994256]
[1773629770062,2.85994256,91.61,91.551,13.86806467]
[1773629770261,2.85994256,91.6,91.551,13.86806467]
[1773629772370,2.85994256,91.62,91.559,13.16906743]
[1773629773072,2.85994256,91.62,91.561,13.16906743]
[1773629773263,34.38,91.629,91.563,9.827]
[1773629773468,2.85994256,91.62,91.564,13.05806994]
[1773629775670,2.85994256,91.62,91.565,9.827]
[1773629775970,2.85994256,91.65,91.591,13.05326432]
[1773629778073,2.85994256,91.63,91.584,9.825]
[1773629778272,2.85994256,91.63,91.585,13.05377331]
[1773629778469,2.85994256,91.64,91.587,13.04490844]
[1773629778867,2.85994256,91.63,91.587,13.04490844]
[1773629779173,2.85994256,91.64,91.587,13.04490844]
[1773629780566,2.85994256,91.63,91.587,13.04490844]
[1773629781377,2.85994256,91.62,91.571,12.96384639]
[1773629782068,9.82,91.635,91.572,9.826]
[1773629782270,2.85994256,91.62,91.573,12.96382932]
[1773629782876,2.85994659,91.62,91.573,12.96382932]
[1773629784076,2.85994659,91.6,91.54,2.85994659]
[1773629784278,2.85994659,91.6,91.541,12.96455379]
[1773629785577,2.85994659,91.6,91.552,13.09207402]
[1773629786481,2.85994659,91.6,91.553,9.828]
[1773629786878,2.85994659,91.6,91.553,22.92643842]
[1773629787181,2.85994659,91.59,91.553,22.92643842]
[1773629788684,2.85994659,91.6,91.554,13.09499114]
[1773629789184,2.85994659,91.59,91.543,13.09499114]
[1773629790678,2.85994659,91.59,91.544,9.829]
[1773629790874,2.85994659,91.59,91.545,13.09641248]
[1773629791479,2.85994659,91.59,91.55,13.10883334]
[1773629793786,2.85994659,91.58,91.55,13.10883334]
[1773629794386,2.85994659,91.58,91.531,13.10553523]
[1773629795582,2.85994659,91.58,91.52,2.85994659]
[1773629795583,2.85994659,91.58,91.543,22.93365316]
[1773629795890,2.85994659,91.58,91.544,13.10465316]
[1773629796189,2.85994659,91.59,91.546,13.10465316]
[1773629796491,2.85994659,91.58,91.546,13.10465316]
[1773629799384,2.85994659,91.58,91.547,23.00652195]
[1773629799585,2.85994659,91.58,91.513,13.17752195]
[1773629800792,2.85994659,91.58,91.532,13.16281345]
[1773629801689,2.85994659,91.57,91.532,13.16281345]
[1773629802388,2.85994659,91.56,91.511,13.15698257]
[1773629802788,9.827,91.569,91.515,13.14464313]
[1773629802789,2.85994659,91.55,91.515,13.14464313]
[1773629803488,2.85994659,91.56,91.519,13.14387261]
[1773629804690,2.85994659,91.56,91.522,9.832]
[1773629804890,2.85994659,91.56,91.523,13.1441025]
[1773629807591,2.85994659,91.57,91.525,13.17349019]
[1773629808094,2.85994659,91.58,91.525,13.17349019]
[1773629808497,2.85994659,91.58,91.538,9.83]
[1773629808697,2.85994659,91.58,91.52,2.85994659]
[1773629808698,2.85994659,91.58,91.539,13.22937065]
[1773629809496,2.85994659,91.58,91.541,13.20977246]
[1773629809898,2.85994659,91.57,91.541,13.20977246]
[1773629810096,9.824,91.597,91.544,13.20977246]
[1773629810301,2.85994659,91.58,91.544,13.20977246]
[1773629811301,2.85994659,91.59,91.544,13.20977246]
[1773629811501,2.85994659,91.59,91.547,9.829]
[1773629811696,2.85994659,91.6,91.548,13.13407547]
[1773629812602,2.85994659,91.6,91.56,13.05210625]
[1773629814603,2.85994659,91.6,91.561,9.828]
[1773629814804,2.85994659,91.6,91.562,13.03237392]
[1773629815002,2.85994659,91.59,91.545,13.03237392]
[1773629816104,2.85994659,91.6,91.545,13.03237392]
[1773629816303,2.85994659,91.6,91.548,9.829]
[1773629816500,2.85994659,91.6,91.549,13.10443235]
[1773629817105,2.85994659,91.61,91.563,13.10443235]
[1773629817401,10.93,91.648,91.563,13.10443235]
[1773629817402,34.4,91.648,91.563,13.10443235]
[1773629817604,2.85994659,91.63,91.571,13.12771422]
[1773629818000,2.85994659,91.62,91.571,13.12771422]
[1773629818207,2.85994659,91.61,91.571,13.12771422]
[1773629818503,2.85994659,91.62,91.571,13.12771422]
[1773629819296,10.06779526,91.675,91.575,13.35570714]
[1773629819297,2.85994659,91.63,91.575,13.35570714]
[1773629820304,2.85994659,91.62,91.575,13.35570714]
[1773629821600,2.85994659,91.62,91.576,9.826]
[1773629824407,2.85994659,91.62,91.575,13.35570714]
[1773629825303,2.85994659,91.61,91.558,13.18868006]
[1773629826108,2.85994659,91.61,91.56,9.828]
[1773629826303,2.85994659,91.61,91.558,13.18868006]
[1773629826304,2.85994659,91.61,91.561,13.19284879]
[1773629826509,9.821,91.62,91.561,13.19284879]
[1773629826510,2.85994659,91.62,91.561,13.19284879]
[1773629827509,2.85994659,91.62,91.564,9.827]
[1773629827703,2.85994659,91.62,91.565,13.19267243]
[1773629828509,2.85994659,91.62,91.571,13.19344417]
[1773629831411,2.85994659,91.62,91.573,13.03355356]
[1773629831909,2.85994659,91.62,91.56,2.85994659]
[1773629831910,2.85994659,91.62,91.576,13.03355356]
[1773629832102,2.85994659,91.61,91.576,13.03355356]
[1773629832303,2.85994659,91.6,91.563,13.03390509]
[1773629833107,2.85994659,91.6,91.557,9.828]
[1773629833406,2.85994659,91.6,91.53,2.85994659]
[1773629833407,2.85994659,91.59,91.543,13.03390509]
[1773629834711,2.85994659,91.59,91.549,13.02424333]
[1773629835711,2.85994659,91.59,91.552,9.828]
[1773629837512,2.85994659,91.59,91.553,13.05475451]
[1773629844923,2.86192378,91.59,91.553,13.05475451]
[1773629847320,32.77,91.642,91.553,13.05475451]
[1773629847619,2.86192378,91.62,91.572,13.06544061]
[1773629848231,34.38,91.637,91.572,13.06544061]
[1773629848535,2.86192378,91.63,91.572,13.06544061]
[1773629849031,2.86192378,91.63,91.573,9.826]
[1773629849233,2.86192378,91.63,91.56,2.86192378]
[1773629849234,2.86192378,91.63,91.574,13.06513174]
[1773629850629,2.86192378,91.63,91.576,13.03608163]
[1773629851633,2.86192378,91.62,91.576,13.03608163]
[1773629852133,2.86192378,91.61,91.576,13.03608163]
[1773629852329,2.86192378,91.6,91.561,13.16735645]
[1773629852737,2.86192378,91.61,91.561,13.16735645]
[1773629853737,2.86192378,91.62,91.564,13.15551006]
[1773629853935,9.82,91.628,91.564,13.15551006]
[1773629854532,9.82,91.628,91.572,13.26284294]
[1773629854533,2.86192378,91.62,91.572,13.26284294]
[1773629855139,2.86192378,91.61,91.572,13.26284294]
[1773629860445,2.86192378,91.61,91.554,13.28049731]
[1773629860640,2.86192378,91.6,91.554,13.28049731]
[1773629860841,2.86192378,91.6,91.54,2.86192378]
[1773629860842,2.86192378,91.59,91.54,13.54828335]
[1773629861048,2.86192378,91.59,91.541,13.28049731]
[1773629861247,2.86192378,91.58,91.541,13.28049731]
[1773629863742,2.86192378,91.58,91.53,13.54828335]
[1773629863947,2.86192378,91.58,91.531,13.25238446]
[1773629864148,12.68792378,91.58,91.531,13.25238446]
[1773629867644,12.68792378,91.58,91.524,13.54828335]
[1773629867854,2.86192378,91.57,91.517,13.25486172]
[1773629868456,9.827,91.569,91.517,13.25486172]
[1773629869457,2.86192378,91.57,91.517,13.25486172]
[1773629870058,9.825,91.587,91.521,13.11400945]
[1773629870560,9.826,91.578,91.521,13.11400945]
[1773629870762,2.86192378,91.57,91.521,13.11400945]
[1773629871959,2.86192378,91.57,91.523,12.75290085]
[1773629872160,9.826,91.578,91.523,12.75290085]
[1773629873362,2.86192378,91.58,91.526,12.73703758]
[1773629874665,2.86192378,91.58,91.528,12.76018489]
[1773629876860,34.4,91.608,91.558,12.75823254]
[1773629877061,2.86192378,91.61,91.558,12.75823254]
[1773629877766,9.821,91.618,91.558,12.75823254]
[1773629878561,2.86192378,91.61,91.558,12.75823254]
[1773629881263,9.821,91.618,91.558,12.75823254]
[1773629881471,2.86192378,91.61,91.558,12.75823254]
[1773629884872,2.86192378,91.6,91.558,12.75823254]
[1773629886666,2.86192378,91.58,91.535,12.8301753]
[1773629886864,2.86192378,91.59,91.535,12.8301753]
[1773629887666,12.68592378,91.59,91.535,12.8301753]
[1773629895977,2.86192378,91.58,91.535,12.8301753]
[1773629900683,12.68792378,91.58,91.535,12.8301753]
[1773629900880,2.86192378,91.57,91.535,12.8301753]
[1773629901080,12.68792378,91.58,91.535,12.8301753]
[1773629902685,2.86192378,91.58,91.535,12.8301753]
[1773629904886,2.86236135,91.58,91.535,12.8301753]
[1773629907785,12.68836135,91.58,91.535,12.8301753]
[1773629908093,2.86236135,91.57,91.535,12.8301753]
[1773629908294,2.86236135,91.58,91.535,12.8301753]
[1773629910292,9.827,91.571,91.535,12.8301753]
[1773629910492,9.827,91.571,91.51,20.36058773]
[1773629910493,2.86236135,91.55,91.523,12.57136805]
[1773629911095,2.86236135,91.57,91.523,12.57136805]
[1773629912593,2.86236135,91.56,91.523,12.57136805]
[1773629915802,2.86236135,91.56,91.509,13.54828335]
[1773629915803,2.86236135,91.54,91.509,13.54828335]
[1773629916098,2.86236135,91.54,91.505,12.51356922]
[1773629916303,12.69136135,91.55,91.505,12.51356922]
[1773629918603,2.86236135,91.54,91.505,12.51356922]
[1773629918800,2.86236135,91.54,91.489,12.52957391]
[1773629918801,2.86236135,91.53,91.489,12.52957391]
[1773629923107,9.83,91.54,91.49,9.835]
[1773629923108,2.86236135,91.54,91.49,9.835]
[1773629923406,2.86236135,91.54,91.491,12.56820095]
[1773629923802,9.829,91.549,91.491,12.56820095]
[1773629925004,9.827,91.571,91.501,12.58132953]
[1773629925204,2.86236135,91.56,91.511,12.58132953]
[1773629927610,2.86236135,91.56,91.512,12.74391685]
[1773629940122,9.827,91.566,91.514,12.73092753]
[1773629940512,2.86236135,91.56,91.514,12.73092753]
[1773629941022,9.828,91.559,91.514,12.73092753]
[1773629944112,2.86236135,91.56,91.514,12.73092753]
[1773629947120,2.86236135,91.56,91.497,13.54828335]
[1773629947121,2.86236135,91.58,91.521,12.73892259]
[1773629947322,2.86236135,91.59,91.531,12.73892259]
[1773629948624,9.826,91.575,91.531,12.73892259]
[1773629949130,9.827,91.568,91.531,12.73892259]
[1773629949430,2.86236135,91.55,91.507,12.7393779]
[1773629952729,34.4,91.598,91.507,12.7393779]
[1773629952730,2.86236135,91.54,91.507,12.7393779]
[1773629954530,2.86236135,91.53,91.486,12.74798131]
[1773629955422,2.86236135,91.53,91.464,54.76058773]
[1773629955423,2.86236135,91.52,91.478,12.74798131]
[1773629961227,2.86236135,91.51,91.478,12.74798131]